Cogmind - Beta 14 @@@ ROGUE MODE // 2024.09.12 @ 15:47:42 Player: BionicBot Result: Destroyed by Y-54 Guardian with Gatling Laser Performance ------------- Evolutions (0) 0 Regions Visited (3) 600 Robots Destroyed (27) 135 Value Destroyed (623) 623 Prototype IDs (5) 100 Alien Tech Used (0) 0 Bonus (0) 0 TOTAL SCORE: 1458 Bonus ------- None Cogmind --------- Core Integrity 0/250 Matter 129/300 Energy 100/100 System Corruption 0% Temperature Warm (120) Movement Treading (240) Ox1 Location -7/Recycling Parts ------- > --- POWER (1) -------- (None) > --- PROPULSION (2) --- Light Treads Wheel > --- UTILITY (2) ------ Large Storage Unit Improved Medium Armor Plating > --- WEAPON (2) ------- Plasma Cannon Gauss Rifle > --- INVENTORY (15) --- Light Ion Engine Subdweller Power Source Compact Wheel Small Storage Unit Improved Sensor Array Terrain Scan Processor Seismic Detector Authchip [Device] Barrage Gun Light Cannon Light Cannon Subdweller Shrapnel Launcher Missile Launcher Datajack Mining Laser Peak State ------------ > --- POWER ------------ Ion Engine > --- PROPULSION ------- Light Treads Wheel > --- UTILITY ---------- Large Storage Unit Improved Medium Armor Plating > --- WEAPON ----------- Plasma Cannon Gauss Rifle > --- INVENTORY -------- Light Ion Engine Subdweller Power Source Compact Wheel Small Storage Unit Improved Sensor Array Terrain Scan Processor Seismic Detector Authchip [Device] Barrage Gun Light Cannon Light Cannon Subdweller Shrapnel Launcher Missile Launcher Datajack Mining Laser [Rating: 18] Favorites ----------- Power Ion Engine Engine Ion Engine Propulsion Light Treads Treads Light Treads Wheel Wheel Utility Large Storage Unit Device Seismic Detector Storage Large Storage Unit Protection Improved Medium Armor Plating Weapon Light Cannon Energy Gun Small Laser Energy Cannon Plasma Cannon Ballistic Gun Assault Rifle Ballistic Cannon Light Cannon Launcher Grenade Launcher Special Weapon Mining Laser Build | -11 -10 -10 -7 ------- Run | Yrd Mat Sub Rec Slots Evolved . | . . . . Power . | . . . . Propulsion . | . . . . Utility . | . . . . Weapon . | . . . . Parts Attached 26 | 9 9 3 5 Power 1 | 1 . . . Engine 1 | 1 . . . Core . | . . . . Reactor . | . . . . Propulsion 3 | 2 . . 1 Treads 2 | 2 . . . Leg . | . . . . Wheel 1 | . . . 1 Hover . | . . . . Flight . | . . . . Utility 4 | 2 1 . 1 Device 1 | 1 . . . Storage 2 | 1 1 . . Processor . | . . . . Hackware . | . . . . Protection 1 | . . . 1 Artifact . | . . . . Weapon 18 | 4 8 3 3 Energy Gun 3 | 2 1 . . Energy Cannon 1 | . . . 1 Ballistic Gun 4 | 2 1 . 1 Ballistic Cannon 5 | . 2 2 1 Launcher 4 | . 3 1 . Special Weapon 1 | . 1 . . Impact Weapon . | . . . . Slashing Weapon . | . . . . Piercing Weapon . | . . . . Special Melee Weapon . | . . . . Unidentified Prototypes . | . . . . Parts Lost 2 | . . 1 1 Power 1 | . . . 1 Propulsion 1 | . . 1 . Utility . | . . . . Weapon . | . . . . Highest Loss Streak 1 | . . 1 1 To Critical Strikes . | . . . . Average Slot Usage (%) 97 | . 99 98 93 Engine 14 | . 14 14 14 Treads 23 | . 28 26 14 Wheel 2 | . . . 7 Device 12 | . 14 14 7 Storage 14 | . 14 14 14 Protection 1 | . . . 6 Energy Gun 2 | . 4 . . Ballistic Gun 2 | . 4 . 3 Ballistic Cannon 16 | . 14 16 20 Launcher 4 | . 3 11 . Peak Build Rating 18 | 7 8 8 18 Average Rating 8 | 5 7 7 11 On Entrance 5 | . 7 8 7 Naked Turns . | . . . . Heaviest Build 43 | 14 32 32 43 Greatest Support 40 | 40 40 40 20 Greatest Overweight (x) 4 | . . 1 4 Average Overweight (x) . | . . . 2 Largest Inventory Capacity 15 | 8 15 15 15 Average Capacity 14 | 6 13 15 15 Most Carried 15 | 5 10 13 15 Average Carried 10 | 2 8 10 13 Final Capacity 15 | 8 15 15 15 Final Carried 15 | 4 10 13 15 Class Distribution -------------------- 100% | Mutant Dominant Class ---------------- Mutant | -10/Materials Mutant | -10/Subcaves Mutant | -7/Recycling Resources | -11 -10 -10 -7 ----------- Run | Yrd Mat Sub Rec Matter Collected 691 | 211 259 152 69 Remotely . | . . . . Salvage Created 510 | 17 268 90 135 Parts 47 | 2 30 12 3 Haulers Intercepted . | . . . . Recyclers Shooed . | . . . . Parts Field Recycled . | . . . . Retrieved Matter . | . . . . Parts Self-Destructed 9 | . . 9 . Prevented . | . . . . Kills | -11 -10 -10 -7 ------- Run | Yrd Mat Sub Rec Combat Hostiles Destroyed 21 | . 11 8 2 Guns 7 | . 6 . 1 Cannons 8 | . 3 4 1 AOE 6 | . 2 4 . Classes Destroyed 8 | 1 4 2 1 Tunneler 1 | 1 . . . Operator 1 | . 1 . . Turret 2 | . . 2 . Watcher 2 | . 2 . . Swarmer 11 | . 6 5 . Grunt 5 | . 5 . . Sentry 2 | . . . 2 Subdweller 3 | . . 3 . Best Kill Streak 6 | 1 4 6 1 Combat Bots Only 4 | . 3 4 1 Max Kills in Single Turn 4 | 1 2 4 1 Gunslinging 1 | . 1 . . Exploded 3 | . 1 3 . Melee . | . . . . Uniques/NPCs Destroyed . | . . . . Combat | -11 -10 -10 -7 -------- Run | Yrd Mat Sub Rec Hostile Shots Fired 151 | . 35 77 39 Missed 50 | . 9 28 13 Damage Taken 1023 | . 247 572 204 Core 251 | . 49 163 39 Absorbed by Shields . | . . . . Core Remaining (%) 100 | 100 . . . Volleys Fired 62 | 2 39 17 4 Largest 2 | 2 2 2 2 Hottest 108 | 60 100 70 108 Shots Fired 114 | 4 71 31 8 Gun 42 | 4 34 . 4 Cannon 52 | . 27 21 4 Launcher 15 | . 5 10 . Special 5 | . 5 . . Kinetic 71 | 2 44 21 4 Thermal 28 | 2 22 . 4 Explosive 15 | . 5 10 . Electromagnetic . | . . . . Robot Hit Streak 18 | 1 18 8 14 Robot Miss Streak 3 | 1 2 3 . Penetration Max . | . . . . Secondary Targets 1 | . 1 . . Max Gunslinging Chain 1 | . 1 . . Shots Hit Robots 73 | 2 43 21 7 Core Hits 40 | 1 19 15 5 Critical Kills . | . . . . Critical Parts Destroyed . | . . . . Critical Strikes 1 | . . 1 . Blast 1 | . . 1 . Melee Attacks . | . . . . Impact . | . . . . Slashing . | . . . . Piercing . | . . . . Sneak Attacks . | . . . . Combat Hostiles . | . . . . Follow-up Attacks . | . . . . Damage Inflicted 1566 | 27 737 647 155 Guns 409 | 27 330 . 52 Cannons 647 | . 246 298 103 Explosions 509 | . 160 349 . Melee . | . . . . Ramming 1 | . 1 . . Kinetic 773 | 15 408 298 52 Thermal 283 | 12 168 . 103 Explosive 509 | . 160 349 . Electromagnetic . | . . . . Impact . | . . . . Slashing . | . . . . Piercing . | . . . . Highest Corruption . | . . . . Average Corruption . | . . . . Corruption Purged . | . . . . Corruption Blocked . | . . . . Overload Shots . | . . . . Overflow Damage 35 | . 14 21 . Projectiles 4 | . . 4 . Explosions 31 | . 14 17 . Melee . | . . . . Knockbacks 7 | . 3 4 . Impact . | . . . . Kinetic 7 | . 3 4 . Secondary . | . . . . Self-Inflicted Damage 30 | . . 30 . Shots 2 | . . 2 . Rammed 1 | . 1 . . Targets Rammed 1 | . 1 . . Kicked . | . . . . Crushed . | . . . . Highest Temperature 126 | . 80 11 126 Average Temperature 32 | . 28 8 71 Received Heat Transfer 405 | . 84 255 66 Siege Activations . | . . . . Robots Corrupted . | . . . . Combat Hostiles . | . . . . Parts Fried . | . . . . Impact Corruptions . | . . . . Robots Melted . | . . . . Combat Hostiles . | . . . . Parts Melted 3 | . 2 . 1 Heat Transferred 600 | 25 375 . 200 Parts Sabotaged . | . . . . Parts Stolen . | . . . . Parts Stripped . | . . . . Power Chain Reactions . | . . . . Alert | -11 -10 -10 -7 ------- Run | Yrd Mat Sub Rec Peak Influence 194 | 5 194 . 76 Initial 60 | . 3 . 60 Average 68 | 2 87 . 48 Maximum Alert Level . | . . . . Low Security (%) 100 | 100 100 . 100 Level 1 . | . . . . Level 2 . | . . . . Level 3 . | . . . . Level 4 . | . . . . Level 5 . | . . . . High Security . | . . . . Max Security . | . . . . Squads Dispatched 3 | . 3 . . Investigation 1 | . 1 . . Extermination . | . . . . Reinforcement 2 | . 2 . . Assault . | . . . . Garrison . | . . . . Intercept . | . . . . Searches Triggered . | . . . . Construction Impeded . | . . . . Haulers Reinforced . | . . . . Active Scanning Responses . | . . . . Cargo Convoy Interrupts . | . . . . Stealth | -11 -10 -10 -7 --------- Run | Yrd Mat Sub Rec Distress Signals 1 | . 1 . . Communications Jammed . | . . . . Distress Signals . | . . . . Times Spotted 35 | . 20 12 3 Peak Tracking Total 6 | . 3 6 2 Tactical Retreats 1 | . . 1 . Traps | -11 -10 -10 -7 ------- Run | Yrd Mat Sub Rec Traps Triggered 3 | . 1 2 . Indirectly . | . . . . Trap Hack Attempts . | . . . . Triggered . | . . . . Disarmed . | . . . . Reprogrammed . | . . . . Reused . | . . . . Traps Extracted . | . . . . Installed . | . . . . Triggered 1 | . . 1 . Machines | -11 -10 -10 -7 ---------- Run | Yrd Mat Sub Rec Machines Disabled 2 | . . 2 . Max in Single Turn 2 | . . 2 . Machines Repaired . | . . . . Machines Dismantled . | . . . . Machines Sabotaged . | . . . . Overloaded Fab Kills . | . . . . Hacking | -11 -10 -10 -7 --------- Run | Yrd Mat Sub Rec Machines Accessed 8 | . 3 . 5 Terminals 8 | . 3 . 5 Fabricators . | . . . . Repair Stations . | . . . . Recycling Units . | . . . . Scanalyzers . | . . . . Garrison Access . | . . . . Total Hacks 20 | . 8 . 12 Successful 9 | . 3 . 6 Failed 11 | . 5 . 6 Catastrophic 4 | . 3 . 1 Database Lockouts . | . . . . Manual 8 | . 5 . 3 Terminals 20 | . 8 . 12 Fabricators . | . . . . Repair Stations . | . . . . Recycling Units . | . . . . Scanalyzers . | . . . . Garrison Access . | . . . . Terminal Hacks 5 | . 1 . 4 Part Schematic 1 | . . . 1 Prototype ID Bank 2 | . . . 2 Alert Level 1 | . 1 . . Zone Layout 1 | . . . 1 Fabricator Hacks . | . . . . Repair Station Hacks . | . . . . Recycling Unit Hacks . | . . . . Scanalyzer . | . . . . Garrison Access Hacks . | . . . . Unauthorized Hacks 4 | . 2 . 2 Terminals 4 | . 2 . 2 Botnet 4 | . 2 . 2 Fabricators . | . . . . Repair Stations . | . . . . Recycling Units . | . . . . Scanalyzers . | . . . . Garrison Access . | . . . . Data Cores Recovered . | . . . . Used . | . . . . Hacking Detections 5 | . 3 . 2 Full Trace Events . | . . . . Feedback Events . | . . . . Feedback Blocked . | . . . . Robot Schematics Acquired . | . . . . Robots Built . | . . . . Authchips . | . . . . Time . | . . . . Total Robot Build Rating . | . . . . Part Schematics Acquired 1 | . . . 1 Parts Built . | . . . . Authchips . | . . . . Time . | . . . . Total Part Build Rating . | . . . . Parts Repaired . | . . . . Time . | . . . . Parts Recycled . | . . . . Recycled Matter . | . . . . Retrieved Matter . | . . . . Retrieved Components . | . . . . Parts Scanalyzed . | . . . . Part Schematics Acquired . | . . . . Parts Damaged . | . . . . Bothacking | -11 -10 -10 -7 ------------ Run | Yrd Mat Sub Rec Used RIF Installer . | . . . . Robots Hacked . | . . . . Non-combat . | . . . . Combat . | . . . . Robot Hacks Applied . | . . . . Relay Couplers Released . | . . . . Fabnet Peak Effective % . | . . . . Robots Rewired . | . . . . Allies Hacked . | . . . . Hacks Repelled . | . . . . Allies | -11 -10 -10 -7 -------- Run | Yrd Mat Sub Rec Total Allies . | . . . . Largest Group . | . . . . Highest-Rated Group . | . . . . Highest-Rated Ally . | . . . . Total Orders . | . . . . Ally Attacks . | . . . . Total Damage . | . . . . Kills . | . . . . Allies Corrupted . | . . . . Allies Melted . | . . . . Intel | -11 -10 -10 -7 ------- Run | Yrd Mat Sub Rec Robot Analysis Total . | . . . . Derelict Logs Recovered . | . . . . Drone Launches . | . . . . Drone Recoveries . | . . . . Exploration | -11 -10 -10 -7 ------------- Run | Yrd Mat Sub Rec Turns Passed 2388 | 91 977 705 615 Spaces Moved 1251 | 44 462 389 356 Core 2 | 2 . . . Treads 1002 | 42 462 389 109 Legs . | . . . . Wheels 247 | . . . 247 Hover . | . . . . Flight . | . . . . Fastest Speed 50 | 50 160 160 125 Average Speed 163 | 155 160 166 164 Slowest Speed 240 | 160 160 240 240 Overloaded Moves . | . . . . Propulsion Burnouts . | . . . . Robots Hopped . | . . . . Cave-ins Triggered . | . . . . Exploration Rate (%) 51 | 5 78 37 87 Regions Visited 3 Branch Regions 2 Pre-discovered Areas . | . . . . Known Exits Taken . | . . . . Unknown Exits Taken 3 | 1 1 1 . Scrap Searched 1 | . . 1 . Spaces Dug 23 | . 15 8 . Terrain Destroyed 74 | . 32 41 1 Melee . | . . . . Projectile 2 | . 1 . 1 AOE 72 | . 31 41 . Terrain Rammed . | . . . . Walls Destroyed . | . . . . Machines Disabled . | . . . . Actions | -11 -10 -10 -7 --------- Run | Yrd Mat Sub Rec Total 1468 | 59 618 411 380 Wait 97 | . 92 . 5 Move 1248 | 43 461 388 356 Hop . | . . . . Pick Up 20 | 4 8 3 5 Fast Attach 11 | 7 2 . 2 Attach 3 | 1 . . 2 Detach 4 | 1 2 . 1 Swap 12 | 1 7 3 1 Drop 10 | . 6 . 4 Fire 62 | 2 39 17 4 Melee . | . . . . Ram . | . . . . Kick . | . . . . Crush 1 | . 1 . . Escape Stasis . | . . . . Rewire . | . . . . Trap . | . . . . Miscellaneous . | . . . . Route ------- -11/Scrapyard -10/Materials (discovered 4 exits: [*Mat x2] / [*Min] / [*Sub]) -10/Subcaves (discovered 2 exits: [*Mat] / *Rec) -7/Recycling History --------- Turn | Location | Event 6 | -11/Scrapyard | Discovered new exit (range 15) 92 | -11/Scrapyard | Entered Materials 254 | -10/Materials | Discovered new exit (range 14) 304 | -10/Materials | Build established: Mutant 325 | -10/Materials | Discovered new exit (range 11) 727 | -10/Materials | Discovered new exit (range 16) 1062 | -10/Materials | Discovered new exit (range 3) 1069 | -10/Materials | Entered Subcaves 1548 | -10/Subcaves | Discovered new exit (range 6) 1564 | -10/Subcaves | Core integrity fell below 50% 1628 | -10/Subcaves | Shifting Twisted Machinery released Sub. Shrapnel Launcher 1630 | -10/Subcaves | Shifting Twisted Machinery released Barrage Gun 1674 | -10/Subcaves | Discovered new exit (range 11) 1677 | -10/Subcaves | Shifting Twisted Machinery released Sub. Power Source 1687 | -10/Subcaves | Core integrity fell below 20% 1774 | -10/Subcaves | Entered Recycling 2389 | -7/Recycling | Destroyed by Y-54 Guardian with Gatling Laser Last Messages --------------- 02234_ R-06 Scavenger collects Lgt. Cannon. 02235_ Acquired Gauss Rifle. 02250_ Y-54 Guardian springs to life. 02250_ Slug penetrates Y-54 Guardian. 02253_ Y-54 Guardian destroyed. 02256_ R-06 Scavenger collects Imp. Heat Sink. 02258_ R-06 Scavenger collects Flak Gun. 02262_ Acquired 69 matter. 02357_ Connecting with Terminal... >>Schematic(Cloaking Device) Downloading schematic... Cloaking Device Rating: 5 Schematic downloaded. 02384_ Y-54 Guardian springs to life. 02385_ Slug penetrates Y-54 Guardian. 02388_ Imp. Heat Sink melted. 02388_ Y-54 Guardian destroyed. 02388_ Slug penetrates Wall. 02389_ Ion Engine destroyed. Map ----- +----------------------------------------------------+ | ?# ##===#??????????????????????????????????? | | ?# ##########??????????????????????????????? | | # # #??????????????????????????????? | | # # #??????????????????????????????? | | + + !]#??????????????????????????????? | | # # [ !#??????????????????????????????? | | # # ! #??????????????????????????????? | | # # #??????????????????????????????? | | # # #??????????????????????????????? | | # # = #??????????????????????????????? | | ###### # [ #??????????????????????????????? | | ?????# ##########??????????????????????????????? | | ?????# ###?????????????????????????????????????? | | ?????# ""#?????????????????????????????????????? | | ?????# T"#?????????????????????????????????????? | | ###### ""#?????????????????????????????????????? | | ###?????????????????????????????????????? | | #???????????????????????????????????????? | | #???????????????????????????????????????? | | !!!#"Y"###???????????????????????????????????????? | | !! #"""#?????????#####???????????????????????????? | | ################?#"""#??????##???????????????????? | | # ###"Y"#######%## ########?????????? | | """ """ # * Y ????????? | | """ """ + T ????????? | | """ """ # @ ????????? | | # ####+##############???????????????? | | """ """ #######?# #??????????????????????? | | """ """ #???????# #??????????????????????? | | """ """ #???????# #??????????????????????? | | #???????# #??????????????????????? | | """ ""#???????# #?????????????????????? | | """ Y"#???????# ##?????????????????????? | | """ ""#???????# #??????????????????????? | | #???????# #??????????????????????? | | #?#######????????# #??????????????????????? | | ?????????????????####### ##??????????????????????? | | ????????????????????????##???????????????????????? | | ?????????????????????????????????????????????????? | | | | | | | | | | | | | | | | | | | | | | | +----------------------------------------------------+ Best States ------------- Heat Dissipation 25 Energy Generation 10 Energy Capacity 250 Matter Stores 298 Matter Capacity 300 Sight Range 16 Terrain Scan Density 10 Armor Coverage 225 Evasion (%) 40 Recoil Reduction 2 Authchip Count 1 Item Schematics ----------------- Cloaking Device | -7/Recycling | Hacked Robot Schematics ------------------ None Fabricated ------------ Nothing Alien Tech Used ----------------- None Achievements -------------- None Challenges ------------ None Game ------ Seed ThermicColdWarhead Manual? 0 Play Time 00:18:11 Cumulative 114.9 hours Start 2024.09.12 @ 15:31:03 End 2024.09.12 @ 15:47:42 Sessions 1 Manual Loads 0 Difficulty Rogue Special Mode None Game No. 85 Rogue 85 Adventurer 0 Explorer 0 Win Type - Total 3 Types 3/0/0/0/0/0/0/0/0 Lore% 38 Gallery% 50 Achievement% 46 Wizard Run 0 Options --------- Layout 0 ASCII 0 Keyboard 1 Movement Numpad Keybinds 0 Fullscreen 2 Font 18/SmallcapsGlow Map View 76x50 Zoom Use 0% Tactical HUD 1 Map Filters NONE Filters NONE Steam 1 RUN: 561b4c79-47df-46cb-8f98-656d1332537c